fUST/lending_fUST_20250729
["ID","MTS","AMOUNT","RATE_DAILY","PERIOD"]
[375712260,1753721451815,-460.0,0.00020547,2]
[375712261,1753721451825,-460.0,0.00020547,2]
[375712263,1753721451835,-460.0,0.00020547,2]
[375712266,1753721451848,-460.0,0.00020547,2]
[375712268,1753721451861,-460.0,0.00020547,2]
[375712270,1753721451875,-460.0,0.00020547,2]
[375712272,1753721451897,-1500.0,0.00020568,2]
[375712274,1753721451911,-504.7192446,0.0002063,2]
[375712276,1753721451923,-858.7926484,0.00020658,2]
[375712278,1753721451934,-430.064903,0.00020658,2]
[375712279,1753721451947,-430.064903,0.00020658,2]
[375712281,1753721451958,-430.064903,0.00020658,2]
[375712283,1753721451969,-1143.66814298,0.00020722,2]
[375712285,1753721451980,-226.0,0.00020792,2]
[375712287,1753721451991,-1761.74517672,0.00020816,2]
[375712289,1753721452002,-460.0,0.00020821,2]
[375712291,1753721452014,-460.0,0.00020821,2]
[375712293,1753721452025,-4675.94,0.00020821,2]
[375712295,1753721452036,-460.0,0.00020821,2]
[375712297,1753721452047,-460.0,0.00020821,2]
[375712299,1753721452059,-861.78,0.00020821,2]
[375712301,1753721452071,-460.0,0.00020821,2]
[375712303,1753721452082,-460.0,0.00020821,2]
[375712305,1753721452094,-626.47,0.00020821,2]
[375712307,1753721452105,-622.55,0.00020821,2]
[375712309,1753721452117,-460.0,0.00020821,2]
[375712311,1753721452128,-460.0,0.00020821,2]
[375712313,1753721452140,-460.0,0.00020821,2]
[375712315,1753721452156,-460.0,0.00020821,2]
[375712316,1753721452169,-460.0,0.00020821,2]
[375712319,1753721452181,-1363.32,0.00020821,2]
[375712321,1753721452193,-188.47436,0.00020821,2]
[375712323,1753721452206,-460.0,0.00020821,2]
[375712325,1753721452219,-702.27,0.00020821,2]
[375712327,1753721452231,-460.0,0.00020821,2]
[375712329,1753721452242,-460.0,0.00020821,2]
[375712331,1753721452254,-460.0,0.00020821,2]
[375712333,1753721452265,-460.0,0.00020821,2]
[375712335,1753721452277,-151.0,0.00020821,2]
[375712337,1753721452289,-460.0,0.00020821,2]
[375712339,1753721452304,-460.0,0.00020821,2]
[375712341,1753721452318,-460.0,0.00020821,2]
[375712343,1753721452330,-151.0,0.00020821,2]
[375712345,1753721452344,-151.0,0.00020821,2]
[375712348,1753721452357,-294.453064,0.00020821,2]
[375712350,1753721452369,-151.0,0.00020821,2]
[375712352,1753721452382,-460.0,0.00020821,2]
[375712354,1753721452394,-151.0,0.00020821,2]
[375712356,1753721452409,-151.0,0.00020821,2]
[375712358,1753721452421,-460.0,0.00020821,2]
[375712360,1753721452435,-2155.68,0.00020821,2]
[375712362,1753721452447,-743.23,0.00020821,2]
[375712364,1753721452461,-151.0,0.00020821,2]
[375712366,1753721452473,-460.0,0.00020821,2]
[375712369,1753721452484,-460.0,0.00020821,2]
[375712371,1753721452496,-605.73,0.00020821,2]
[375712373,1753721452507,-151.0,0.00020821,2]
[375712375,1753721452523,-525.4,0.00020821,2]
[375712377,1753721452535,-460.0,0.00020821,2]
[375712379,1753721452547,-460.0,0.00020821,2]
[375712381,1753721452559,-460.0,0.00020821,2]
[375712383,1753721452570,-460.0,0.00020821,2]
[375712385,1753721452581,-460.0,0.00020821,2]
[375712387,1753721452592,-460.0,0.00020821,2]
[375712389,1753721452604,-460.0,0.00020821,2]
[375712391,1753721452616,-622.32,0.00020821,2]
[375712393,1753721452628,-460.0,0.00020821,2]
[375712395,1753721452639,-849.57,0.00020821,2]
[375712397,1753721452651,-460.0,0.00020821,2]
[375712399,1753721452662,-460.0,0.00020821,2]
[375712401,1753721452672,-283.9040737,0.00020821,2]
[375712403,1753721452684,-649.09,0.00020821,2]
[375712405,1753721452695,-624.98,0.00020821,2]
[375712407,1753721452707,-460.0,0.00020821,2]
[375712409,1753721452718,-460.0,0.00020821,2]
[375712411,1753721452729,-2187.3,0.00020821,2]
[375712413,1753721452740,-460.0,0.00020821,2]
[375712415,1753721452752,-706.71,0.00020821,2]
[375712417,1753721452763,-291.93187022,0.00020821,2]
[375712419,1753721452775,-1711.04,0.00020821,2]
[375712421,1753721452785,-432.39280054,0.00020821,2]
[375712423,1753721452796,-2804.95,0.00020821,2]
[375712425,1753721452808,-460.0,0.00020821,2]
[375712428,1753721452819,-460.0,0.00020821,2]
[375712430,1753721452830,-460.0,0.00020821,2]
[375712432,1753721452842,-460.0,0.00020821,2]
[375712434,1753721452852,-460.0,0.00020821,2]
[375712435,1753721452863,-751.0,0.00020821,2]
[375712437,1753721452876,-460.0,0.00020821,2]
[375712439,1753721452887,-704.84,0.00020821,2]
[375712441,1753721452900,-475.79,0.00020821,2]
[375712444,1753721452912,-2666.61,0.00020821,2]
[375712446,1753721452923,-341.175063,0.00020821,2]
[375712448,1753721452934,-460.0,0.00020821,2]
[375712450,1753721452945,-460.0,0.00020821,2]
[375712452,1753721452957,-460.0,0.00020821,2]
[375712454,1753721452968,-460.0,0.00020821,2]
[375712471,1753721453116,-341.175063,0.00020821,2]
[375712474,1753721453176,-460.0,0.00020821,2]
[375712475,1753721453187,-460.0,0.00020821,2]
[375712477,1753721453197,-650.72,0.00020821,2]
[375712479,1753721453206,-460.0,0.00020821,2]
[375712481,1753721453215,-460.0,0.00020821,2]
[375712483,1753721453225,-1183.38,0.00020821,2]
[375712485,1753721453234,-460.0,0.00020821,2]
[375712486,1753721453243,-460.0,0.00020821,2]
[375712488,1753721453254,-460.0,0.00020821,2]
[375712490,1753721453263,-2681.56,0.00020821,2]
[375712492,1753721453273,-593.36,0.00020821,2]
[375712494,1753721453282,-460.0,0.00020821,2]
[375712496,1753721453292,-1502.79,0.00020821,2]
[375712497,1753721453301,-460.0,0.00020821,2]
[375712499,1753721453310,-460.0,0.00020821,2]
[375712501,1753721453320,-535.87,0.00020821,2]
[375712503,1753721453329,-460.0,0.00020821,2]
[375712505,1753721453339,-1386.76,0.00020821,2]
[375712506,1753721453348,-768.3,0.00020821,2]
[375712508,1753721453357,-528.52,0.00020821,2]
[375712510,1753721453367,-2222.21,0.00020821,2]
[375712512,1753721453376,-460.0,0.00020821,2]
[375712514,1753721453386,-523.99,0.00020821,2]
[375712515,1753721453395,-460.0,0.00020821,2]
[375712517,1753721453406,-151.0,0.00020821,2]
[375712519,1753721453416,-460.0,0.00020821,2]
[375712521,1753721453425,-532.78,0.00020821,2]
[375712523,1753721453435,-460.0,0.00020821,2]
[375712525,1753721453444,-643.34,0.00020821,2]
[375712526,1753721453454,-460.0,0.00020821,2]
[375712528,1753721453463,-2255.73,0.00020821,2]
[375712530,1753721453473,-4716.04,0.00020821,2]
[375712532,1753721453482,-1711.81,0.00020821,2]
[375712534,1753721453491,-151.0,0.00020821,2]
[375712536,1753721453501,-460.0,0.00020821,2]
[375712537,1753721453510,-460.0,0.00020821,2]
[375712539,1753721453519,-329.681481,0.00020821,2]
[375712541,1753721453529,-460.0,0.00020821,2]
[375712543,1753721453538,-460.0,0.00020821,2]
[375712545,1753721453547,-460.0,0.00020821,2]
[375712547,1753721453556,-460.0,0.00020821,2]
[375712548,1753721453565,-329.681481,0.00020821,2]
[375712550,1753721453575,-151.775596,0.00020821,2]
[375712552,1753721453584,-460.0,0.00020821,2]
[375712554,1753721453594,-460.0,0.00020821,2]
[375712556,1753721453603,-460.0,0.00020821,2]
[375712558,1753721453612,-304.47172873,0.00020849,3]
[375712560,1753721453622,-1024.3,0.00020873,3]
[375712561,1753721453631,-1594.61548424,0.00020888,2]
[375712563,1753721453640,-151.0,0.00021,3]
[375712565,1753721453650,-1154.4406914,0.00021006,2]
[375712567,1753721453659,-578.0900773,0.00021006,2]
[375712568,1753721453668,-1155.7430388,0.00021006,2]
[375712570,1753721453677,-154.2133676,0.0002102,2]
[375712572,1753721453687,-355.8844956,0.0002102,2]
[375712574,1753721453697,-578.0900773,0.0002102,2]
[375712576,1753721453706,-359.7157313,0.0002102,2]
[375712578,1753721453714,-586.77600702,0.00021068,2]
[375712580,1753721453724,-1500.0,0.00021068,2]
[375712582,1753721453737,-1500.0,0.00021068,2]
[375712583,1753721453746,-1506.65538097,0.00021068,2]
[375712585,1753721453755,-527.2328433,0.00021068,2]
[375712587,1753721453765,-1500.0,0.00021068,2]
[375712589,1753721453774,-500.0,0.00021068,2]
[375712591,1753721453784,-1500.0,0.00021068,2]
[375712593,1753721453793,-500.0,0.00021068,2]
[375712594,1753721453802,-526.56501023,0.00021068,2]
[375712596,1753721453811,-1500.0,0.00021068,2]
[375712598,1753721453822,-1500.0,0.00021068,2]
[375712600,1753721453831,-220.40059662,0.00021068,2]
[375712602,1753721453840,-629.44958979,0.00021068,2]
[375712604,1753721453850,-546.63696254,0.00021068,2]
[375712606,1753721453860,-500.0,0.00021068,2]
[375712607,1753721453871,-666.797697,0.00021069,2]
[375712609,1753721453883,-1278.11892622,0.00021095,2]
[375712611,1753721453892,-460.0,0.00021095,2]
[375712613,1753721453903,-4675.94,0.00021095,2]
[375712615,1753721453913,-460.0,0.00021095,2]
[375712617,1753721453923,-460.0,0.00021095,2]
[375712618,1753721453932,-861.78,0.00021095,2]
[375712620,1753721453941,-460.0,0.00021095,2]
[375712622,1753721453951,-460.0,0.00021095,2]
[375712624,1753721453960,-626.47,0.00021095,2]
[375712626,1753721453970,-622.55,0.00021095,2]
[375712627,1753721453980,-460.0,0.00021095,2]
[375712629,1753721453989,-460.0,0.00021095,2]
[375712631,1753721453997,-460.0,0.00021095,2]
[375712633,1753721454007,-460.0,0.00021095,2]
[375712635,1753721454018,-579.21818815,0.00021095,2]
[375712637,1753721454027,-1363.32,0.00021095,2]
[375712638,1753721454036,-460.0,0.00021095,2]
[375712640,1753721454045,-702.27,0.00021095,2]
[375712642,1753721454054,-460.0,0.00021095,2]
[375712644,1753721454064,-479.3052528,0.00021095,2]
[375712646,1753721454073,-460.0,0.00021095,2]
[375712648,1753721454083,-460.0,0.00021095,2]
[375712649,1753721454092,-460.0,0.00021095,2]
[375712651,1753721454101,-460.0,0.00021095,2]
[375712653,1753721454111,-460.0,0.00021095,2]
[375712655,1753721454121,-516.4,0.00021095,2]
[375712657,1753721454131,-460.0,0.00021095,2]
[375712659,1753721454141,-2155.68,0.00021095,2]
[375712660,1753721454152,-743.23,0.00021095,2]
[375712662,1753721454162,-460.0,0.00021095,2]
[375712664,1753721454172,-605.73,0.00021095,2]
[375712666,1753721454182,-525.4,0.00021095,2]
[375712668,1753721454191,-460.0,0.00021095,2]
[375712670,1753721454200,-460.0,0.00021095,2]
[375712671,1753721454210,-460.0,0.00021095,2]
[375712673,1753721454220,-460.0,0.00021095,2]
[375712675,1753721454229,-460.0,0.00021095,2]
[375712677,1753721454238,-460.0,0.00021095,2]
[375712679,1753721454248,-622.32,0.00021095,2]
[375712680,1753721454257,-460.0,0.00021095,2]
[375712682,1753721454267,-849.57,0.00021095,2]
[375712684,1753721454277,-380.83320129,0.00021095,2]
[375712686,1753721454287,-649.09,0.00021095,2]
[375712688,1753721454297,-460.0,0.00021095,2]
[375712690,1753721454308,-624.98,0.00021095,2]
[375712691,1753721454318,-151.0,0.00021095,2]
[375712693,1753721454328,-460.0,0.00021095,2]
[375712695,1753721454341,-460.0,0.00021095,2]
[375712697,1753721454351,-2187.3,0.00021095,2]
[375712699,1753721454360,-706.71,0.00021095,2]
[375712701,1753721454370,-1711.04,0.00021095,2]
[375712703,1753721454380,-2804.95,0.00021095,2]
[375712705,1753721454390,-460.0,0.00021095,2]
[375712706,1753721454402,-460.0,0.00021095,2]
[375712708,1753721454412,-460.0,0.00021095,2]
[375712710,1753721454421,-460.0,0.00021095,2]
[375712712,1753721454431,-751.0,0.00021095,2]
[375712714,1753721454440,-460.0,0.00021095,2]
[375712715,1753721454450,-704.84,0.00021095,2]
[375712717,1753721454459,-475.79,0.00021095,2]
[375712719,1753721454469,-2666.61,0.00021095,2]
[375712721,1753721454479,-460.0,0.00021095,2]
[375712723,1753721454488,-388.81990747,0.00021095,2]
[375712725,1753721454497,-460.0,0.00021095,2]
[375712726,1753721454507,-460.0,0.00021095,2]
[375712728,1753721454516,-460.0,0.00021095,2]
[375712730,1753721454525,-460.0,0.00021095,2]
[375712732,1753721454535,-650.72,0.00021095,2]
[375712734,1753721454545,-216.40134364,0.00021095,2]
[375712736,1753721454554,-460.0,0.00021095,2]
[375712737,1753721454564,-1183.38,0.00021095,2]
[375712739,1753721454574,-460.0,0.00021095,2]
[375712741,1753721454584,-460.0,0.00021095,2]
[375712743,1753721454594,-460.0,0.00021095,2]
[375712745,1753721454603,-2681.56,0.00021095,2]
[375712747,1753721454613,-593.36,0.00021095,2]
[375712748,1753721454622,-460.0,0.00021095,2]
[375712750,1753721454632,-1502.79,0.00021095,2]
[375712752,1753721454641,-460.0,0.00021095,2]
[375712754,1753721454653,-151.0,0.00021095,2]
[375712756,1753721454662,-460.0,0.00021095,2]
[375712757,1753721454672,-535.87,0.00021095,2]
[375712759,1753721454681,-460.0,0.00021095,2]
[375712761,1753721454691,-151.0,0.00021095,2]
[375712763,1753721454700,-1386.76,0.00021095,2]
[375712765,1753721454710,-528.52,0.00021095,2]
[375712767,1753721454719,-768.3,0.00021095,2]
[375712769,1753721454730,-151.0,0.00021095,2]
[375712771,1753721454740,-2222.21,0.00021095,2]
[375712773,1753721454749,-248.56,0.00021095,2]
[375712775,1753721454758,-523.99,0.00021095,2]
[375712777,1753721454768,-151.0,0.00021095,2]
[375712779,1753721454778,-460.0,0.00021095,2]
[375712781,1753721454788,-460.0,0.00021095,2]
[375712782,1753721454797,-532.78,0.00021095,2]
[375712783,1753721454807,-460.0,0.00021095,2]
[375712784,1753721454816,-643.34,0.00021095,2]
[375712785,1753721454826,-460.0,0.00021095,2]
[375712786,1753721454835,-2255.73,0.00021095,2]
[375712787,1753721454844,-4716.04,0.00021095,2]
[375712788,1753721454853,-1711.81,0.00021095,2]
[375712789,1753721454862,-460.0,0.00021095,2]
[375712790,1753721454874,-460.0,0.00021095,2]
[375712791,1753721454884,-460.0,0.00021095,2]
[375712792,1753721454893,-460.0,0.00021095,2]
[375712793,1753721454904,-460.0,0.00021095,2]
[375712794,1753721454914,-460.0,0.00021095,2]
[375712795,1753721454924,-460.0,0.00021095,2]
[375712796,1753721454933,-460.0,0.00021095,2]
[375712797,1753721454943,-460.0,0.00021095,2]
[375712798,1753721454952,-2000.0,0.00021116,2]
[375712799,1753721454961,-430.064903,0.00021123,2]
[375712800,1753721454971,-363.454793,0.00021135,2]
[375712801,1753721454980,-363.454793,0.00021135,2]
[375712802,1753721454989,-151.0,0.00021135,2]
[375712803,1753721454999,-151.0,0.00021135,2]
[375712804,1753721455008,-430.064903,0.00021176,2]
[375712805,1753721455017,-2415.68615155,0.00021177,2]
[375712806,1753721455027,-430.064903,0.00021178,2]
[375712807,1753721455036,-430.064903,0.00021178,2]
[375712808,1753721455045,-860.129806,0.00021233,2]
[375712809,1753721455054,-1024.3,0.00021239,4]
[375712810,1753721455064,-151.0,0.00021245,2]
[375712811,1753721455074,-151.0,0.00021245,2]
[375712812,1753721455083,-1041.107892,0.00021245,2]
[375712813,1753721455094,-1041.107892,0.00021245,2]
[375712814,1753721455103,-151.0,0.00021245,2]
[375712815,1753721455112,-151.0,0.00021245,2]
[375712816,1753721455122,-578.662412,0.00021245,2]
[375712817,1753721455131,-578.662412,0.00021245,2]
[375712818,1753721455141,-151.0,0.00021245,2]
[375712819,1753721455151,-151.0,0.00021245,2]
[375712820,1753721455162,-151.0,0.000213,4]
[375712821,1753721455171,-160.0,0.00021322,2]
[375712822,1753721455181,-200.0,0.00021367,15]
[375712823,1753721455191,-200.0,0.00021367,15]
[375712824,1753721455200,-200.0,0.00021367,15]
[375712825,1753721455210,-200.0,0.00021367,15]
[375712826,1753721455220,-320.0,0.00021367,15]
[375712827,1753721455229,-460.0,0.00021369,2]
[375712828,1753721455238,-4675.94,0.00021369,2]
[375712829,1753721455248,-460.0,0.00021369,2]
[375712830,1753721455257,-460.0,0.00021369,2]
[375712831,1753721455267,-861.78,0.00021369,2]
[375712832,1753721455277,-460.0,0.00021369,2]
[375712833,1753721455286,-153.07190147,0.00021369,2]
[375712835,1753721455296,-626.47,0.00021369,2]
[375712836,1753721455306,-622.55,0.00021369,2]
[375712837,1753721455314,-506.64979274,0.00021369,2]
[375712839,1753721455324,-460.0,0.00021369,2]
[375712840,1753721455333,-460.0,0.00021369,2]
[375712841,1753721455342,-1363.32,0.00021369,2]
[375712843,1753721455352,-460.0,0.00021369,2]
[375712844,1753721455361,-702.27,0.00021369,2]
[375712846,1753721455370,-460.0,0.00021369,2]
[375712847,1753721455380,-460.0,0.00021369,2]
[375712849,1753721455389,-460.0,0.00021369,2]
[375712850,1753721455399,-151.0,0.00021369,2]
[375712852,1753721455410,-151.0,0.00021369,2]
[375712854,1753721455420,-151.0,0.00021369,2]
[375712856,1753721455429,-151.0,0.00021369,2]
[375712858,1753721455439,-151.0,0.00021369,2]
[375712860,1753721455448,-460.0,0.00021369,2]
[375712862,1753721455458,-460.0,0.00021369,2]
[375712864,1753721455467,-359.166529,0.00021369,2]
[375712866,1753721455476,-359.166529,0.00021369,2]
[375712868,1753721455486,-151.0,0.00021369,2]
[375712870,1753721455495,-2155.68,0.00021369,2]
[375712872,1753721455505,-743.23,0.00021369,2]
[375712874,1753721455514,-460.0,0.00021369,2]
[375712876,1753721455523,-605.73,0.00021369,2]
[375712878,1753721455533,-525.4,0.00021369,2]
[375712880,1753721455543,-460.0,0.00021369,2]
[375712882,1753721455553,-460.0,0.00021369,2]
[375712884,1753721455562,-460.0,0.00021369,2]
[375712886,1753721455571,-460.0,0.00021369,2]
[375712888,1753721455581,-460.0,0.00021369,2]
[375712890,1753721455590,-151.0,0.00021369,2]
[375712892,1753721455599,-460.0,0.00021369,2]
[375712894,1753721455609,-622.32,0.00021369,2]
[375712896,1753721455618,-849.57,0.00021369,2]
[375712898,1753721455627,-649.09,0.00021369,2]
[375712900,1753721455636,-460.0,0.00021369,2]
[375712902,1753721455646,-624.98,0.00021369,2]
[375712904,1753721455656,-460.0,0.00021369,2]
[375712906,1753721455665,-460.0,0.00021369,2]
[375712908,1753721455674,-2187.3,0.00021369,2]
[375712910,1753721455684,-706.71,0.00021369,2]
[375712912,1753721455693,-1711.04,0.00021369,2]
[375712914,1753721455704,-2804.95,0.00021369,2]
[375712916,1753721455713,-460.0,0.00021369,2]
[375712918,1753721455723,-460.0,0.00021369,2]
[375712920,1753721455732,-460.0,0.00021369,2]
[375712922,1753721455741,-751.0,0.00021369,2]
[375712924,1753721455750,-460.0,0.00021369,2]
[375712926,1753721455759,-704.84,0.00021369,2]
[375712928,1753721455768,-475.79,0.00021369,2]
[375712930,1753721455780,-2666.61,0.00021369,2]
[375712932,1753721455789,-460.0,0.00021369,2]
[375712934,1753721455799,-460.0,0.00021369,2]
[375712936,1753721455809,-460.0,0.00021369,2]
[375712938,1753721455818,-304.186765,0.00021369,2]
[375712940,1753721455827,-460.0,0.00021369,2]
[375712941,1753721455836,-650.72,0.00021369,2]
[375712943,1753721455846,-304.186765,0.00021369,2]
[375712945,1753721455855,-460.0,0.00021369,2]
[375712947,1753721455864,-1183.38,0.00021369,2]
[375712949,1753721455874,-526.66642539,0.00021369,2]
[375712951,1753721455887,-460.0,0.00021369,2]
[375712953,1753721455897,-460.0,0.00021369,2]
[375712955,1753721455908,-2681.56,0.00021369,2]
[375712957,1753721455917,-593.36,0.00021369,2]
[375712959,1753721455928,-460.0,0.00021369,2]
[375712961,1753721455937,-1502.79,0.00021369,2]
[375712963,1753721455947,-460.0,0.00021369,2]
[375712965,1753721455959,-535.87,0.00021369,2]
[375712967,1753721455968,-460.0,0.00021369,2]
[375712969,1753721455978,-1386.76,0.00021369,2]
[375712971,1753721455987,-528.52,0.00021369,2]
[375712973,1753721455997,-768.3,0.00021369,2]
[375712975,1753721456007,-2222.21,0.00021369,2]
[375712977,1753721456017,-523.99,0.00021369,2]
[375712979,1753721456027,-460.0,0.00021369,2]
[375712981,1753721456037,-152.311588,0.00021369,2]
[375712983,1753721456047,-460.0,0.00021369,2]
[375712985,1753721456057,-532.78,0.00021369,2]
[375712987,1753721456067,-460.0,0.00021369,2]
[375712989,1753721456077,-643.34,0.00021369,2]
[375712991,1753721456087,-2255.73,0.00021369,2]
[375712993,1753721456097,-4716.04,0.00021369,2]
[375712995,1753721456109,-1711.81,0.00021369,2]
[375712997,1753721456118,-151.0,0.00021369,2]
[375712999,1753721456128,-204.80719875,0.00021369,2]
[375713001,1753721456139,-329.681481,0.00021369,2]
[375713003,1753721456150,-460.0,0.00021369,2]
[375713005,1753721456168,-460.0,0.00021369,2]
[375713007,1753721456179,-460.0,0.00021369,2]
[375713010,1753721456191,-460.0,0.00021369,2]
[375713012,1753721456203,-329.681481,0.00021369,2]
[375713013,1753721456215,-460.0,0.00021369,2]
[375713015,1753721456225,-460.0,0.00021369,2]
[375713017,1753721456238,-460.0,0.00021369,2]
[375713019,1753721456248,-151.0,0.0002137,2]
[375713021,1753721456259,-151.0,0.0002137,2]
[375713023,1753721456270,-151.0,0.0002137,2]
[375713025,1753721456280,-151.0,0.0002137,2]
[375713027,1753721456291,-151.0,0.0002137,2]
[375713029,1753721456302,-151.0,0.0002137,2]
[375713031,1753721456312,-151.0,0.0002137,2]
[375713033,1753721456323,-151.0,0.0002137,2]
[375713035,1753721456333,-151.0,0.0002137,2]
[375713037,1753721456344,-151.0,0.0002137,2]
[375713039,1753721456354,-151.0,0.0002137,2]
[375713041,1753721456363,-272.38218103,0.0002137,2]
[375713043,1753721456373,-151.0,0.0002137,2]
[375713058,1753721456510,-151.0,0.0002137,2]
[375713061,1753721456546,-151.0,0.0002137,2]
[375713063,1753721456557,-769.0,0.0002137,2]
[375713065,1753721456566,-151.0,0.0002137,2]
[375713067,1753721456576,-1594.61548424,0.000214,2]
[375713069,1753721456585,-500.0,0.00021473,2]
[375713071,1753721456594,-500.0,0.00021473,2]
[375713073,1753721456604,-500.0,0.00021473,2]
[375713075,1753721456614,-500.0,0.00021473,2]
[375713077,1753721456624,-167.64355203,0.00021473,2]
[375713079,1753721456634,-500.0,0.00021473,2]
[375713081,1753721456645,-501.48761306,0.00021473,2]
[375713083,1753721456660,-500.0,0.00021473,2]
[375713085,1753721456671,-500.0,0.00021473,2]
[375713087,1753721456680,-500.0,0.00021473,2]
[375713089,1753721456690,-502.04095239,0.00021473,2]
[375713091,1753721456699,-500.0,0.00021473,2]
[375713093,1753721456709,-500.0,0.00021473,2]
[375713095,1753721456719,-500.0,0.00021473,2]
[375713097,1753721456729,-312.24807181,0.00021473,2]
[375713099,1753721456739,-528.50532864,0.00021473,2]
[375713101,1753721456749,-500.0,0.00021473,2]
[375713103,1753721456758,-500.0,0.00021473,2]
[375713105,1753721456768,-500.0,0.00021473,2]
[375713107,1753721456777,-500.0,0.00021473,2]
[375713109,1753721456787,-500.0,0.00021473,2]
[375713111,1753721456796,-500.0,0.00021473,2]
[375713113,1753721456806,-500.0,0.00021473,2]
[375713115,1753721456816,-500.0,0.00021473,2]
[375713116,1753721456826,-500.0,0.00021473,2]
[375713119,1753721456836,-500.0,0.00021473,2]
[375713120,1753721456845,-160.0126474,0.00021479,2]
[375713122,1753721456855,-417.1752787,0.00021479,2]
[375713124,1753721456865,-88315.34256468,0.000215,2]
[375713126,1753721456879,-14473.92,0.000215,2]
[375713129,1753721456889,-113138.67,0.000215,2]
[375713130,1753721456899,-88281.14232187,0.000215,2]
[375713149,1753721457071,-111254.64767813,0.000215,2]
[375713151,1753721457081,-151.0,0.000215,2]
[375713153,1753721457091,-152.841085,0.000215,7]
[375713155,1753721457101,-151.704754,0.000215,2]
[375713157,1753721457112,-1400.74308113,0.000215,2]
[375713159,1753721457123,-151.0,0.000215,2]
[375713161,1753721457134,-151.0,0.000215,2]
[375713163,1753721457144,-151.0,0.000215,2]
[375713165,1753721457157,-151.0,0.000215,2]
[375713167,1753721457166,-151.0,0.000215,2]
[375713169,1753721457176,-219.633511,0.000215,2]
[375713171,1753721457185,-170.182503,0.000215,2]
[375713173,1753721457195,-170.182503,0.000215,2]
[375713175,1753721457204,-170.182503,0.000215,2]
[375713177,1753721457215,-170.182503,0.000215,2]
[375713179,1753721457226,-151.0,0.000215,2]
[375713181,1753721457236,-151.0,0.000215,2]
[375713183,1753721457247,-151.0,0.000215,2]
[375713185,1753721457258,-151.0,0.000215,2]
[375713187,1753721457268,-151.0,0.000215,2]
[375713189,1753721457278,-151.0,0.000215,2]
[375713191,1753721457288,-151.0,0.000215,2]
[375713193,1753721457297,-151.0,0.000215,2]
[375713195,1753721457307,-151.0,0.000215,2]
[375713197,1753721457316,-151.0,0.000215,2]
[375713198,1753721457325,-151.0,0.000215,2]
[375713200,1753721457335,-151.0,0.000215,2]
[375713202,1753721457345,-151.0,0.000215,2]
[375713204,1753721457355,-151.0,0.000215,2]
[375713206,1753721457364,-151.0,0.000215,2]
[375713208,1753721457374,-151.0,0.000215,2]
[375713210,1753721457384,-169.352687,0.000215,2]
[375713212,1753721457393,-169.352687,0.000215,2]
[375713214,1753721457405,-151.0,0.000215,2]
[375713216,1753721457415,-151.0,0.000215,2]
[375713218,1753721457425,-169.352687,0.000215,2]